[Event "NJSK 2018 Jeugd C"]
[Site "Assen, Netherlands"]
[Date "2018.05.04"]
[Round "8.1"]
[White "Van Foreest, Machteld"]
[Black "Klaren, Duncan"]
[Result "1-0"]
[TimeControl "40/90m+30sec/move"]
[WhiteElo "2132"]
[BlackElo "1713"]

1. e4 {[%clk 01:30:58]} {[%emt 00:00:02]} c5 {[%clk 01:30:54]} {[%emt
00:00:06]} 2. Nf3 {[%clk 01:31:24]} {[%emt 00:00:04]} d6 {[%clk 01:31:16]}
{[%emt 00:00:07]} 3. d4 {[%clk 01:31:50]} {[%emt 00:00:05]} cxd4 {[%clk
01:31:42]} {[%emt 00:00:05]} 4. Nxd4 {[%clk 01:32:17]} {[%emt 00:00:02]} Nf6
{[%clk 01:32:05]} {[%emt 00:00:07]} 5. Nc3 {[%clk 01:32:45]} {[%emt 00:00:02]}
a6 {[%clk 01:32:30]} {[%emt 00:00:05]} 6. Bg5 {[%clk 01:33:12]} {[%emt
00:00:03]} e6 {[%clk 01:32:44]} {[%emt 00:00:16]} 7. f4 {[%clk 01:33:39]}
{[%emt 00:00:03]} h6 {[%clk 01:32:45]} {[%emt 00:00:28]} 8. Bh4 {[%clk
01:34:06]} {[%emt 00:00:03]} Qb6 {[%clk 01:33:10]} {[%emt 00:00:05]} 9. Qd2
{[%clk 01:34:17]} {[%emt 00:00:20]} Qxb2 {[%clk 01:33:32]} {[%emt 00:00:07]} 10.
Rb1 {[%clk 01:34:45]} {[%emt 00:00:02]} Qa3 {[%clk 01:33:55]} {[%emt 00:00:08]}
11. Bxf6 {[%clk 01:34:50]} {[%emt 00:00:25]} gxf6 {[%clk 01:34:04]} {[%emt
00:00:21]} 12. Be2 {[%clk 01:35:18]} {[%emt 00:00:02]} h5 {[%clk 01:33:29]}
{[%emt 00:01:04]} 13. O-O {[%clk 01:34:26]} {[%emt 00:01:22]} Nd7 {[%clk
01:26:29]} {[%emt 00:07:30]} 14. Kh1 {[%clk 01:23:44]} {[%emt 00:11:12]} Nc5
{[%clk 01:18:27]} {[%emt 00:08:31]} 15. f5 {[%clk 01:11:37]} {[%emt 00:12:37]}
Be7 {[%clk 01:12:19]} {[%emt 00:06:36]} 16. fxe6 {[%clk 01:09:39]} {[%emt
00:02:31]} fxe6 {[%clk 01:11:14]} {[%emt 00:01:34]} 17. Nb3 {[%clk 01:02:44]}
{[%emt 00:07:25]} Nxb3 {[%clk 01:09:25]} {[%emt 00:02:20]} 18. Rxb3 {[%clk
01:01:52]} {[%emt 00:01:21]} Qc5 {[%clk 01:09:38]} {[%emt 00:00:18]} 19. Na4
{[%clk 01:00:51]} {[%emt 00:01:31]} Qg5 {[%clk 01:03:35]} {[%emt 00:06:32]} 20.
Qc3 {[%clk 00:53:05]} {[%emt 00:08:16]} Bd7 {[%clk 00:45:56]} {[%emt 00:18:10]}
21. Nb6 {[%clk 00:52:16]} {[%emt 00:01:19]} Rd8 {[%clk 00:45:54]} {[%emt
00:00:30]} 22. Qc7 {[%clk 00:36:11]} {[%emt 00:16:36]} Bc6 {[%clk 00:38:58]}
{[%emt 00:07:27]} 23. Rg3 {[%clk 00:33:10]} {[%emt 00:03:32]} Qh6 {[%clk
00:37:51]} {[%emt 00:01:36]} 24. Bxa6 {[%clk 00:32:16]} {[%emt 00:01:24]} h4
{[%clk 00:32:44]} {[%emt 00:05:37]} 25. Rg4 {[%clk 00:24:20]} {[%emt 00:08:26]}
h3 {[%clk 00:31:23]} {[%emt 00:01:51]} 26. Bxb7 {[%clk 00:24:30]} {[%emt
00:00:20]} hxg2 {[%clk 00:31:30]} {[%emt 00:00:24]} 27. Rxg2 {[%clk 00:24:57]}
{[%emt 00:00:04]} Bxb7 {[%clk 00:31:44]} {[%emt 00:00:16]} 28. Qxb7 {[%clk
00:25:25]} {[%emt 00:00:02]} Kf7 {[%clk 00:30:59]} {[%emt 00:01:14]} 29. Rfg1
{[%clk 00:23:42]} {[%emt 00:02:13]} Rdg8 {[%clk 00:25:30]} {[%emt 00:05:58]} 30.
Nd5 {[%clk 00:21:23]} {[%emt 00:02:50]} 1-0

[Event "NJSK 2018 Jeugd C"]
[Site "Assen, Netherlands"]
[Date "2018.05.04"]
[Round "8.2"]
[White "Bleeker, Kasper"]
[Black "Kutchoukov, Daniel"]
[Result "0-1"]
[TimeControl "40/90m+30sec/move"]
[WhiteElo "1737"]
[BlackElo "1902"]

1. e4 {[%clk 01:30:59]} c6 {[%clk 01:30:59]} {[%emt 00:00:01]} 2. c4 {[%clk
01:31:22]} {[%emt 00:00:07]} d5 {[%clk 01:31:22]} {[%emt 00:00:07]} 3. exd5
{[%clk 01:31:43]} {[%emt 00:00:09]} cxd5 {[%clk 01:31:48]} {[%emt 00:00:04]} 4.
cxd5 {[%clk 01:32:08]} {[%emt 00:00:05]} Nf6 {[%clk 01:32:08]} {[%emt
00:00:09]} 5. Qa4+ {[%clk 01:32:24]} {[%emt 00:00:15]} Nbd7 {[%clk 01:31:58]}
{[%emt 00:00:40]} 6. Nc3 {[%clk 01:32:44]} {[%emt 00:00:10]} g6 {[%clk
01:31:57]} {[%emt 00:00:32]} 7. Nf3 {[%clk 01:31:41]} {[%emt 00:01:32]} Bg7
{[%clk 01:32:13]} {[%emt 00:00:14]} 8. Bc4 {[%clk 01:31:44]} {[%emt 00:00:27]}
O-O {[%clk 01:32:18]} {[%emt 00:00:25]} 9. d3 {[%clk 01:32:02]} {[%emt
00:00:11]} a6 {[%clk 01:03:55]} {[%emt 00:28:53]} 10. O-O {[%clk 01:31:24]}
{[%emt 00:01:08]} b5 {[%clk 00:52:01]} {[%emt 00:12:24]} 11. Bxb5 {[%clk
01:30:50]} {[%emt 00:01:04]} Nb6 {[%clk 00:51:45]} {[%emt 00:00:46]} 12. Qb3
{[%clk 01:18:36]} {[%emt 00:12:44]} axb5 {[%clk 00:51:54]} {[%emt 00:00:21]} 13.
d6 {[%clk 01:16:40]} {[%emt 00:02:26]} Qxd6 {[%clk 00:49:50]} {[%emt 00:02:34]}
14. Nxb5 {[%clk 01:15:54]} {[%emt 00:01:16]} Qd5 {[%clk 00:46:28]} {[%emt
00:03:52]} 15. Nbd4 {[%clk 01:05:51]} {[%emt 00:10:30]} Qxb3 {[%clk 00:45:39]}
{[%emt 00:01:21]} 16. Nxb3 {[%clk 01:06:19]} {[%emt 00:00:02]} Nfd5 {[%clk
00:44:22]} {[%emt 00:01:47]} 17. d4 {[%clk 01:05:21]} {[%emt 00:01:28]} Ba6
{[%clk 00:34:46]} {[%emt 00:10:06]} 18. Re1 {[%clk 01:04:09]} {[%emt 00:01:42]}
Bc4 {[%clk 00:22:21]} {[%emt 00:12:55]} 19. Nfd2 {[%clk 01:00:47]} {[%emt
00:03:52]} Rfb8 {[%clk 00:19:30]} {[%emt 00:03:21]} 20. a3 {[%clk 00:53:32]}
{[%emt 00:07:45]} Bxb3 {[%clk 00:17:40]} {[%emt 00:02:21]} 21. Nxb3 {[%clk
00:53:47]} {[%emt 00:00:15]} Nc4 {[%clk 00:18:00]} {[%emt 00:00:10]} 22. Nc5
{[%clk 00:53:29]} {[%emt 00:00:48]} Bxd4 {[%clk 00:15:48]} {[%emt 00:02:42]} 23.
Nd7 {[%clk 00:52:24]} {[%emt 00:01:35]} Rd8 {[%clk 00:13:49]} {[%emt 00:02:29]}
24. Rd1 {[%clk 00:52:20]} {[%emt 00:00:34]} e5 {[%clk 00:13:46]} {[%emt
00:00:33]} 0-1

[Event "NJSK 2018 Jeugd C"]
[Site "Assen, Netherlands"]
[Date "2018.05.04"]
[Round "8.3"]
[White "Elgersma, Onno"]
[Black "Pham, Khoi"]
[Result "0-1"]
[TimeControl "40/90m+30sec/move"]
[WhiteElo "2060"]
[BlackElo "1983"]

1. e4 {[%clk 01:30:57]} {[%emt 00:00:02]} c5 {[%clk 01:30:57]} {[%emt
00:00:03]} 2. Nf3 {[%clk 01:31:11]} {[%emt 00:00:17]} d6 {[%clk 01:31:17]}
{[%emt 00:00:10]} 3. d4 {[%clk 01:31:12]} {[%emt 00:00:29]} cxd4 {[%clk
01:31:42]} {[%emt 00:00:05]} 4. Nxd4 {[%clk 01:31:40]} {[%emt 00:00:02]} Nf6
{[%clk 01:32:04]} {[%emt 00:00:08]} 5. Nc3 {[%clk 01:32:03]} {[%emt 00:00:07]}
a6 {[%clk 01:32:29]} {[%emt 00:00:05]} 6. h3 {[%clk 01:32:13]} {[%emt
00:00:19]} e5 {[%clk 01:32:43]} {[%emt 00:00:17]} 7. Nde2 {[%clk 01:32:39]}
{[%emt 00:00:04]} h5 {[%clk 01:33:05]} {[%emt 00:00:07]} 8. Bg5 {[%clk
01:32:11]} {[%emt 00:00:58]} Be6 {[%clk 01:33:29]} {[%emt 00:00:07]} 9. Bxf6
{[%clk 01:30:58]} {[%emt 00:01:43]} Qxf6 {[%clk 01:33:36]} {[%emt 00:00:21]} 10.
Nd5 {[%clk 01:31:17]} {[%emt 00:00:11]} Qd8 {[%clk 01:33:58]} {[%emt 00:00:08]}
11. Qd3 {[%clk 01:30:42]} {[%emt 00:01:05]} g6 {[%clk 01:32:09]} {[%emt
00:02:19]} 12. g3 {[%clk 01:25:52]} {[%emt 00:05:20]} Bh6 {[%clk 01:29:11]}
{[%emt 00:03:27]} 13. Bg2 {[%clk 01:15:53]} {[%emt 00:10:30]} Nd7 {[%clk
01:16:14]} {[%emt 00:13:27]} 14. Nec3 {[%clk 00:58:54]} {[%emt 00:17:29]} b5
{[%clk 01:06:56]} {[%emt 00:09:48]} 15. O-O {[%clk 00:56:23]} {[%emt 00:03:00]}
Rc8 {[%clk 01:02:36]} {[%emt 00:04:50]} 16. a3 {[%clk 00:48:34]} {[%emt
00:08:20]} O-O {[%clk 00:59:43]} {[%emt 00:03:22]} 17. Qe2 {[%clk 00:46:00]}
{[%emt 00:03:04]} Nb6 {[%clk 00:57:43]} {[%emt 00:02:30]} 18. Rfd1 {[%clk
00:36:30]} {[%emt 00:09:59]} Nc4 {[%clk 00:51:15]} {[%emt 00:06:59]} 19. b3
{[%clk 00:35:26]} {[%emt 00:01:35]} Na5 {[%clk 00:51:08]} {[%emt 00:00:36]} 20.
a4 {[%clk 00:21:08]} {[%emt 00:14:48]} Nc6 {[%clk 00:46:51]} {[%emt 00:04:47]}
21. axb5 {[%clk 00:20:30]} {[%emt 00:01:08]} Nd4 {[%clk 00:47:14]} {[%emt
00:00:07]} 22. Qd3 {[%clk 00:19:33]} {[%emt 00:01:27]} Bxd5 {[%clk 00:46:15]}
{[%emt 00:01:29]} 23. Nxd5 {[%clk 00:18:18]} {[%emt 00:01:44]} axb5 {[%clk
00:44:42]} {[%emt 00:02:04]} 24. c3 {[%clk 00:14:00]} {[%emt 00:04:48]} Nxb3
{[%clk 00:44:27]} {[%emt 00:00:45]} 25. Ra3 {[%clk 00:14:15]} {[%emt 00:00:15]}
Nc5 {[%clk 00:42:16]} {[%emt 00:02:40]} 26. Qxb5 {[%clk 00:14:21]} {[%emt
00:00:24]} Rb8 {[%clk 00:40:45]} {[%emt 00:02:01]} 27. Qc6 {[%clk 00:13:36]}
{[%emt 00:01:15]} Kg7 {[%clk 00:35:44]} {[%emt 00:05:31]} 28. Ra7 {[%clk
00:12:01]} {[%emt 00:02:04]} Rb2 {[%clk 00:33:10]} {[%emt 00:03:04]} 29. Nc7
{[%clk 00:04:25]} {[%emt 00:08:06]} Qf6 {[%clk 00:29:12]} {[%emt 00:04:27]} 30.
f3 {[%clk 00:01:18]} {[%emt 00:03:37]} Be3+ {[%clk 00:21:31]} {[%emt 00:08:11]}
31. Kh1 {[%clk 00:00:53]} {[%emt 00:00:55]} Nxe4 {[%clk 00:20:40]} {[%emt
00:01:21]} 32. Qxe4 {[%clk 00:00:58]} {[%emt 00:00:25]} Bxa7 {[%clk 00:20:59]}
{[%emt 00:00:11]} 33. Nd5 {[%clk 00:00:51]} {[%emt 00:00:37]} Qg5 {[%clk
00:20:16]} {[%emt 00:01:13]} 34. f4 {[%clk 00:00:57]} {[%emt 00:00:25]} Qxg3
{[%clk 00:20:07]} {[%emt 00:00:39]} 35. fxe5 {[%clk 00:00:50]} {[%emt
00:00:38]} dxe5 {[%clk 00:19:47]} {[%emt 00:00:49]} 36. Nb4 {[%clk 00:00:44]}
{[%emt 00:00:37]} Rc8 {[%clk 00:17:56]} {[%emt 00:02:20]} 37. Nc6 {[%clk
00:00:53]} {[%emt 00:00:21]} Bb6 {[%clk 00:17:17]} {[%emt 00:01:10]} 38. Ne7
{[%clk 00:00:50]} {[%emt 00:00:33]} Rxc3 {[%clk 00:17:00]} {[%emt 00:00:47]}
0-1

[Event "NJSK 2018 Jeugd C"]
[Site "Assen, Netherlands"]
[Date "2018.05.04"]
[Round "8.4"]
[White "Maters, Arthur"]
[Black "Shakhverdian, William"]
[Result "0-1"]
[TimeControl "40/90m+30sec/move"]
[WhiteElo "1895"]
[BlackElo "1777"]

1. e4 {[%clk 01:30:59]} e5 {[%clk 01:30:55]} {[%emt 00:00:05]} 2. Nf3 {[%clk
01:31:25]} {[%emt 00:00:04]} Nc6 {[%clk 01:31:20]} {[%emt 00:00:05]} 3. Bc4
{[%clk 01:31:50]} {[%emt 00:00:05]} Bc5 {[%clk 01:31:47]} {[%emt 00:00:03]} 4.
c3 {[%clk 01:32:15]} {[%emt 00:00:06]} Nf6 {[%clk 01:32:11]} {[%emt 00:00:05]}
5. d3 {[%clk 01:32:41]} {[%emt 00:00:04]} d6 {[%clk 01:32:01]} {[%emt
00:00:40]} 6. Bb3 {[%clk 01:33:05]} {[%emt 00:00:06]} O-O {[%clk 01:29:54]}
{[%emt 00:02:36]} 7. h3 {[%clk 01:33:21]} {[%emt 00:00:14]} a5 {[%clk
01:29:31]} {[%emt 00:00:53]} 8. Bg5 {[%clk 01:31:51]} {[%emt 00:02:00]} Be6
{[%clk 01:29:22]} {[%emt 00:00:39]} 9. Bc2 {[%clk 01:32:07]} {[%emt 00:00:15]}
h6 {[%clk 01:25:44]} {[%emt 00:04:07]} 10. Bh4 {[%clk 01:32:26]} {[%emt
00:00:10]} g5 {[%clk 01:19:26]} {[%emt 00:06:48]} 11. Bg3 {[%clk 01:32:26]}
{[%emt 00:00:30]} Nh5 {[%clk 01:19:02]} {[%emt 00:00:54]} 12. Bh2 {[%clk
01:13:20]} {[%emt 00:19:36]} Qf6 {[%clk 01:16:31]} {[%emt 00:03:01]} 13. Nbd2
{[%clk 01:05:24]} {[%emt 00:08:25]} Nf4 {[%clk 01:14:29]} {[%emt 00:02:33]} 14.
Bxf4 {[%clk 01:05:23]} {[%emt 00:00:31]} gxf4 {[%clk 01:13:36]} {[%emt
00:01:23]} 15. g4 {[%clk 00:58:58]} {[%emt 00:06:56]} Kg7 {[%clk 01:06:59]}
{[%emt 00:07:07]} 16. Rg1 {[%clk 00:53:00]} {[%emt 00:06:28]} Rh8 {[%clk
01:05:43]} {[%emt 00:01:46]} 17. g5 {[%clk 00:35:58]} {[%emt 00:17:32]} hxg5
{[%clk 01:06:03]} {[%emt 00:00:09]} 18. Nxg5 {[%clk 00:36:21]} {[%emt
00:00:07]} Kf8 {[%clk 01:05:55]} {[%emt 00:00:38]} 19. Nxe6+ {[%clk 00:31:44]}
{[%emt 00:05:08]} Qxe6 {[%clk 01:03:51]} {[%emt 00:02:34]} 20. Qe2 {[%clk
00:30:52]} {[%emt 00:01:23]} Ke7 {[%clk 01:03:22]} {[%emt 00:00:58]} 21. Bb3
{[%clk 00:26:18]} {[%emt 00:05:04]} Qxh3 {[%clk 00:57:42]} {[%emt 00:06:10]} 22.
Nf3 {[%clk 00:23:36]} {[%emt 00:03:13]} Rag8 {[%clk 00:55:12]} {[%emt
00:03:00]} 23. O-O-O {[%clk 00:23:57]} {[%emt 00:00:09]} Qh5 {[%clk 00:55:00]}
{[%emt 00:00:38]} 24. Rxg8 {[%clk 00:18:23]} {[%emt 00:06:09]} Rxg8 {[%clk
00:55:24]} {[%emt 00:00:06]} 25. d4 {[%clk 00:18:48]} {[%emt 00:00:05]} exd4
{[%clk 00:49:53]} {[%emt 00:06:01]} 26. cxd4 {[%clk 00:19:09]} {[%emt
00:00:09]} Bb6 {[%clk 00:48:40]} {[%emt 00:01:49]} 27. Qd3 {[%clk 00:18:15]}
{[%emt 00:01:17]} Nb4 {[%clk 00:42:25]} {[%emt 00:06:45]} 28. Qc4 {[%clk
00:15:06]} {[%emt 00:03:39]} Rg7 {[%clk 00:40:51]} {[%emt 00:02:03]} 29. Qc3
{[%clk 00:15:32]} {[%emt 00:00:05]} Rg2 {[%clk 00:38:27]} {[%emt 00:02:53]} 30.
e5 {[%clk 00:12:00]} {[%emt 00:04:03]} Rxf2 {[%clk 00:33:46]} {[%emt 00:05:12]}
31. exd6+ {[%clk 00:12:23]} {[%emt 00:00:07]} Kxd6 {[%clk 00:32:41]} {[%emt
00:01:34]} 32. Ne5 {[%clk 00:10:55]} {[%emt 00:01:59]} Rc2+ {[%clk 00:31:10]}
{[%emt 00:02:02]} 33. Qxc2 {[%clk 00:11:21]} {[%emt 00:00:03]} Nxc2 {[%clk
00:31:35]} {[%emt 00:00:04]} 34. Nxf7+ {[%clk 00:11:43]} {[%emt 00:00:08]} Ke7
{[%clk 00:29:28]} {[%emt 00:02:37]} 35. Kxc2 {[%clk 00:12:06]} {[%emt
00:00:08]} Qe2+ {[%clk 00:29:27]} {[%emt 00:00:29]} 36. Rd2 {[%clk 00:11:50]}
{[%emt 00:00:48]} Qe4+ {[%clk 00:29:35]} {[%emt 00:00:21]} 37. Kc3 {[%clk
00:09:30]} {[%emt 00:02:51]} Qe3+ {[%clk 00:29:33]} {[%emt 00:00:31]} 38. Rd3
{[%clk 00:09:34]} {[%emt 00:00:27]} Qc1+ {[%clk 00:29:56]} {[%emt 00:00:06]} 39.
Bc2 {[%clk 00:09:51]} {[%emt 00:00:13]} Kxf7 {[%clk 00:30:17]} {[%emt
00:00:10]} 0-1

[Event "NJSK 2018 Jeugd C"]
[Site "Assen, Netherlands"]
[Date "2018.05.04"]
[Round "8.5"]
[White "Brandsma, Romayn"]
[Black "Van der Schaaf, Tristan"]
[Result "1-0"]
[TimeControl "40/90m+30sec/move"]
[WhiteElo "1715"]
[BlackElo "1647"]

1. e4 {[%clk 01:30:40]} {[%emt 00:00:18]} c6 {[%clk 01:30:44]} {[%emt
00:00:17]} 2. Nf3 {[%clk 01:30:55]} {[%emt 00:00:15]} d5 {[%clk 01:31:01]}
{[%emt 00:00:13]} 3. exd5 {[%clk 01:31:10]} {[%emt 00:00:15]} cxd5 {[%clk
01:31:15]} {[%emt 00:00:17]} 4. Ne5 {[%clk 01:31:14]} {[%emt 00:00:26]} Nc6
{[%clk 01:29:48]} {[%emt 00:01:57]} 5. d4 {[%clk 01:30:48]} {[%emt 00:00:56]}
a6 {[%clk 01:23:21]} {[%emt 00:06:57]} 6. Nc3 {[%clk 01:29:02]} {[%emt
00:02:15]} Bf5 {[%clk 01:11:39]} {[%emt 00:12:12]} 7. h4 {[%clk 01:21:25]}
{[%emt 00:08:07]} h5 {[%clk 01:03:39]} {[%emt 00:08:30]} 8. Be2 {[%clk
01:18:27]} {[%emt 00:03:28]} Nf6 {[%clk 00:58:08]} {[%emt 00:06:01]} 9. Bg5
{[%clk 01:10:54]} {[%emt 00:08:03]} e6 {[%clk 00:52:15]} {[%emt 00:06:23]} 10.
Bxf6 {[%clk 01:09:59]} {[%emt 00:01:25]} Qxf6 {[%clk 00:50:09]} {[%emt
00:02:36]} 11. Nxc6 {[%clk 01:08:26]} {[%emt 00:02:02]} bxc6 {[%clk 00:49:24]}
{[%emt 00:01:16]} 12. g3 {[%clk 00:55:54]} {[%emt 00:13:03]} g6 {[%clk
00:37:33]} {[%emt 00:12:21]} 13. Na4 {[%clk 00:51:02]} {[%emt 00:05:22]} Bd6
{[%clk 00:36:10]} {[%emt 00:01:53]} 14. c3 {[%clk 00:49:32]} {[%emt 00:02:00]}
Qd8 {[%clk 00:30:28]} {[%emt 00:06:12]} 15. Nc5 {[%clk 00:39:01]} {[%emt
00:11:01]} Qb6 {[%clk 00:26:13]} {[%emt 00:04:45]} 16. b4 {[%clk 00:36:05]}
{[%emt 00:03:26]} Bxc5 {[%clk 00:13:40]} {[%emt 00:13:03]} 17. dxc5 {[%clk
00:35:55]} {[%emt 00:00:40]} Qc7 {[%clk 00:13:30]} {[%emt 00:00:40]} 18. a4
{[%clk 00:31:23]} {[%emt 00:05:02]} O-O {[%clk 00:12:38]} {[%emt 00:01:22]} 19.
a5 {[%clk 00:27:23]} {[%emt 00:04:31]} Qe5 {[%clk 00:10:46]} {[%emt 00:02:21]}
20. Qd2 {[%clk 00:25:34]} {[%emt 00:02:19]} Bg4 {[%clk 00:08:38]} {[%emt
00:02:39]} 21. Rc1 {[%clk 00:23:43]} {[%emt 00:02:21]} Rfd8 {[%clk 00:05:50]}
{[%emt 00:03:17]} 22. Qe3 {[%clk 00:21:35]} {[%emt 00:02:38]} Qxe3 {[%clk
00:05:08]} {[%emt 00:01:12]} 23. fxe3 {[%clk 00:21:56]} {[%emt 00:00:09]} Bxe2
{[%clk 00:05:27]} {[%emt 00:00:10]} 24. Kxe2 {[%clk 00:22:09]} {[%emt
00:00:17]} e5 {[%clk 00:05:09]} {[%emt 00:00:49]} 25. Rhd1 {[%clk 00:21:10]}
{[%emt 00:01:29]} Kf8 {[%clk 00:04:22]} {[%emt 00:01:17]} 26. Rd2 {[%clk
00:20:23]} {[%emt 00:01:17]} Ke7 {[%clk 00:02:06]} {[%emt 00:02:46]} 27. Rcd1
{[%clk 00:20:23]} {[%emt 00:00:29]} Ke6 {[%clk 00:02:04]} {[%emt 00:00:32]} 28.
c4 {[%clk 00:19:03]} {[%emt 00:01:51]} Rab8 {[%clk 00:01:19]} {[%emt 00:01:15]}
29. cxd5+ {[%clk 00:19:03]} {[%emt 00:00:30]} cxd5 {[%clk 00:01:39]} {[%emt
00:00:11]} 30. Rb2 {[%clk 00:18:25]} {[%emt 00:01:07]} Rb5 {[%clk 00:01:47]}
{[%emt 00:00:22]} 31. Kd3 {[%clk 00:15:34]} {[%emt 00:03:20]} f5 {[%clk
00:01:38]} {[%emt 00:00:39]} 32. Kc3 {[%clk 00:15:07]} {[%emt 00:00:57]} Rd7
{[%clk 00:01:02]} {[%emt 00:01:07]} 33. Kb3 {[%clk 00:12:55]} {[%emt 00:02:42]}
Rc7 {[%clk 00:01:28]} {[%emt 00:00:04]} 34. Ka3 {[%clk 00:12:49]} {[%emt
00:00:35]} Rd7 {[%clk 00:01:43]} {[%emt 00:00:15]} 35. Rbd2 {[%clk 00:12:49]}
{[%emt 00:00:31]} Rd8 {[%clk 00:01:58]} {[%emt 00:00:15]} 36. c6 {[%clk
00:11:10]} {[%emt 00:02:08]} Rc8 {[%clk 00:02:18]} {[%emt 00:00:10]} 37. Rc2
{[%clk 00:10:19]} {[%emt 00:01:21]} Kd6 {[%clk 00:02:15]} {[%emt 00:00:33]} 38.
Rdc1 {[%clk 00:10:28]} {[%emt 00:00:21]} Rc7 {[%clk 00:02:22]} {[%emt
00:00:24]} 39. Rc3 {[%clk 00:08:28]} {[%emt 00:02:29]} Rb8 {[%clk 00:01:59]}
{[%emt 00:00:53]} 40. Rc5 {[%clk 00:08:49]} {[%emt 00:00:09]} Rd8 {[%clk
00:00:48]} {[%emt 00:01:41]} 41. Rd1 {[%clk 00:07:53]} {[%emt 00:01:26]} Ke6
{[%clk 00:01:07]} {[%emt 00:00:12]} 42. Ka4 {[%clk 00:08:10]} {[%emt 00:00:13]}
1-0

[Event "NJSK 2018 Jeugd C"]
[Site "Assen, Netherlands"]
[Date "2018.05.04"]
[Round "8.6"]
[White "Nguyen, Lucas"]
[Black "Yeh, Timo"]
[Result "1-0"]
[TimeControl "40/90m+30sec/move"]
[WhiteElo "1919"]
[BlackElo "1729"]

1. e4 {[%clk 01:30:58]} {[%emt 00:00:02]} e5 {[%clk 01:30:52]} {[%emt
00:00:08]} 2. Nf3 {[%clk 01:31:22]} {[%emt 00:00:05]} Nc6 {[%clk 01:31:20]}
{[%emt 00:00:03]} 3. d4 {[%clk 01:31:47]} {[%emt 00:00:04]} exd4 {[%clk
01:31:47]} {[%emt 00:00:03]} 4. Nxd4 {[%clk 01:32:11]} {[%emt 00:00:06]} Bc5
{[%clk 01:32:08]} {[%emt 00:00:08]} 5. Nb3 {[%clk 01:32:37]} {[%emt 00:00:05]}
Bb6 {[%clk 01:32:34]} {[%emt 00:00:04]} 6. Nc3 {[%clk 01:33:01]} {[%emt
00:00:05]} Nf6 {[%clk 01:32:59]} {[%emt 00:00:05]} 7. Qe2 {[%clk 01:33:09]}
{[%emt 00:00:22]} O-O {[%clk 01:33:22]} {[%emt 00:00:07]} 8. Be3 {[%clk
01:33:28]} {[%emt 00:00:10]} d5 {[%clk 01:33:48]} {[%emt 00:00:04]} 9. O-O-O
{[%clk 01:33:42]} {[%emt 00:00:16]} d4 {[%clk 01:34:15]} {[%emt 00:00:03]} 10.
Bg5 {[%clk 01:33:54]} {[%emt 00:00:17]} h6 {[%clk 01:29:36]} {[%emt 00:05:09]}
11. Bh4 {[%clk 01:34:03]} {[%emt 00:00:21]} Re8 {[%clk 01:21:57]} {[%emt
00:08:09]} 12. f3 {[%clk 01:31:22]} {[%emt 00:03:11]} Be6 {[%clk 01:21:33]}
{[%emt 00:00:54]} 13. g4 {[%clk 01:26:42]} {[%emt 00:05:08]} Bxb3 {[%clk
01:12:13]} {[%emt 00:09:52]} 14. axb3 {[%clk 01:27:01]} {[%emt 00:00:10]} Qd6
{[%clk 01:11:35]} {[%emt 00:01:09]} 15. Kb1 {[%clk 01:25:09]} {[%emt 00:02:22]}
Qe6 {[%clk 01:10:58]} {[%emt 00:01:07]} 16. Na4 {[%clk 01:20:45]} {[%emt
00:04:54]} Ne5 {[%clk 01:06:25]} {[%emt 00:05:04]} 17. Qg2 {[%clk 01:11:11]}
{[%emt 00:10:03]} Rad8 {[%clk 01:04:32]} {[%emt 00:02:23]} 18. Bd3 {[%clk
01:10:26]} {[%emt 00:01:14]} c5 {[%clk 01:02:54]} {[%emt 00:02:09]} 19. g5
{[%clk 01:07:33]} {[%emt 00:03:22]} hxg5 {[%clk 01:02:13]} {[%emt 00:01:11]} 20.
Bxg5 {[%clk 01:07:58]} {[%emt 00:00:05]} Rd6 {[%clk 01:01:38]} {[%emt
00:01:04]} 21. Bb5 {[%clk 01:01:16]} {[%emt 00:07:12]} Rc8 {[%clk 01:00:49]}
{[%emt 00:01:20]} 22. f4 {[%clk 00:52:18]} {[%emt 00:09:28]} Neg4 {[%clk
00:58:38]} {[%emt 00:02:41]} 23. e5 {[%clk 00:52:41]} {[%emt 00:00:07]} d3
{[%clk 00:33:57]} {[%emt 00:25:11]} 24. Bxd3 {[%clk 00:47:28]} {[%emt
00:05:42]} Rdd8 {[%clk 00:31:38]} {[%emt 00:02:49]} 25. exf6 {[%clk 00:41:48]}
{[%emt 00:06:11]} Ne3 {[%clk 00:30:29]} {[%emt 00:01:38]} 26. Qf3 {[%clk
00:41:33]} {[%emt 00:00:44]} Nxd1 {[%clk 00:28:00]} {[%emt 00:03:00]} 27. Rxd1
{[%clk 00:41:51]} {[%emt 00:00:12]} g6 {[%clk 00:23:18]} {[%emt 00:05:12]} 28.
f5 {[%clk 00:40:01]} {[%emt 00:02:20]} Rxd3 {[%clk 00:16:55]} {[%emt 00:06:53]}
29. Qxd3 {[%clk 00:39:27]} {[%emt 00:01:04]} Qxf5 {[%clk 00:16:59]} {[%emt
00:00:26]} 30. Qxf5 {[%clk 00:39:11]} {[%emt 00:00:45]} gxf5 {[%clk 00:17:24]}
{[%emt 00:00:05]} 31. Nxb6 {[%clk 00:39:38]} {[%emt 00:00:04]} axb6 {[%emt
00:00:21]} 32. Rg1 {[%clk 00:39:55]} {[%emt 00:00:02]} Kh7 {[%clk 00:18:04]}
{[%emt 00:00:08]} 33. Bf4 {[%clk 00:40:05]} {[%emt 00:00:21]} Rc6 {[%clk
00:18:07]} {[%emt 00:00:27]} 34. Rg7 {[%clk 00:40:18]} {[%emt 00:00:16]} Kh8
{[%clk 00:17:14]} {[%emt 00:01:25]} 35. Rxf7 {[%clk 00:40:45]} {[%emt
00:00:02]} Kg8 {[%clk 00:17:37]} {[%emt 00:00:07]} 36. Rxb7 {[%emt 00:00:52]}
Rxf6 {[%clk 00:18:04]} {[%emt 00:00:02]} 37. c3 {[%clk 00:39:53]} {[%emt
00:01:02]} Kf8 {[%clk 00:18:14]} {[%emt 00:00:14]} 38. Kc2 {[%clk 00:39:57]}
{[%emt 00:00:31]} Ke8 {[%clk 00:18:41]} {[%emt 00:00:03]} 39. Kd3 {[%clk
00:40:20]} {[%emt 00:00:07]} Re6 {[%clk 00:18:57]} {[%emt 00:00:14]} 40. Bc7
{[%clk 00:39:55]} {[%emt 00:00:55]} Kd7 {[%clk 00:19:02]} {[%emt 00:00:25]} 41.
Rxb6 {[%clk 00:39:58]} {[%emt 00:00:28]} Re1 {[%clk 00:18:59]} {[%emt
00:00:33]} 42. Bg3 {[%clk 00:40:08]} {[%emt 00:00:18]} Rf1 {[%clk 00:19:16]}
{[%emt 00:00:12]} 43. Ke2 {[%clk 00:40:20]} {[%emt 00:00:19]} Rb1 {[%clk
00:19:43]} {[%emt 00:00:04]} 44. Rd6+ {[%clk 00:40:43]} {[%emt 00:00:06]} Ke7
{[%clk 00:20:01]} {[%emt 00:00:10]} 45. Rd2 {[%clk 00:41:10]} {[%emt 00:00:05]}
Kf6 {[%clk 00:20:03]} {[%emt 00:00:23]} 46. Bf4 {[%clk 00:41:13]} {[%emt
00:00:31]} Rg1 {[%clk 00:20:23]} {[%emt 00:00:12]} 47. Be3 {[%clk 00:40:13]}
{[%emt 00:01:29]} Rg8 {[%clk 00:20:45]} {[%emt 00:00:08]} 48. Bxc5 {[%clk
00:40:11]} {[%emt 00:00:33]} f4 {[%clk 00:20:48]} {[%emt 00:00:26]} 49. Kf3
{[%clk 00:40:31]} {[%emt 00:00:09]} Ke5 {[%clk 00:21:10]} {[%emt 00:00:08]} 50.
Bd6+ {[%clk 00:40:52]} {[%emt 00:00:10]} 1-0